[Event "7. Arber-Senioren-Cup 2019"]
[Site "Bodenmais"]
[Date "2019.07.27"]
[Round "1.23"]
[White "Steinbach, Peter"]
[Black "Cordts, Elof"]
[Result "1/2-1/2"]
[ECO "A45"]
[WhiteElo "1958"]
[BlackElo "1710"]
[Annotator "NA RC"]
[PlyCount "58"]
[EventDate "2019.07.27"]
[EventType "swiss"]
[EventCountry "GER"]
[SourceTitle "playchess.com"]
[Source "ChessBase"]
[SourceQuality "1"]
[TimeControl "5400+30"]

1. d4 {[%emt 0:00:00]} Nf6 {[%emt 0:00:00]} 2. Bg5 {[%emt 0:00:00]} e6 {[%emt 0:00:00]} 3. e4 {[%emt 0:00:00]} Be7 {[%emt 0:00:00]} 4. Nd2 {[%emt 0:00:00]} c5 {[%emt 0:00:00]} 5. dxc5 {[%emt 0:00:00]} Qa5 {[%emt 0:00:00]} 6. e5 {[%emt 0:00:00]} Nd5 {[%emt 0:00:00]} 7. Bxe7 {[%emt 0:00:00]} Nxe7 {[%emt 0:00:00]} 8. Qg4 {[%emt 0:00:00]} O-O {[%emt 0:00:00]} 9. b4 {[%emt 0:00:00]} Qc7 {[%emt 0:00:00]} 10. f4 {[%emt 0:00:00]} Ng6 {[%emt 0:00:00]} 11. Ngf3 {[%emt 0:00:00]} Nc6 {[%emt 0:00:00]} 12. c3 {[%emt 0:00:00]} Nce7 {[%emt 0:00:00]} 13. Bd3 {[%emt 0:00:00]} f5 {[%emt 0:00:00]} 14. Qg5 {[%emt 0:00:00]} b6 {[%emt 0:00:00]} 15. h4 {[%emt 0:03:06]} h6 {[%emt 0:00:00]} 16. Qg3 {[%emt 0:00:06]} bxc5 {[%emt 0:00:00]} 17. h5 {[%emt 0:00:31]} Nh8 {[%emt 0:00:00]} 18. b5 {[%emt 0:01:26]} Bb7 {[%emt 0:00:00]} 19. Nc4 {[%emt 0:06:03]} Nd5 {[%emt 0:02:00]} 20. Kd2 {[%emt 0:01:23]} a6 {[%emt 0:05:33]} 21. a4 {[%emt 0:02:33]} axb5 {[%emt 0:00:32]} 22. axb5 {[%emt 0:00:01]} Rxa1 {[%emt 0:00:13]} 23. Rxa1 {[%emt 0:00:00]} Ra8 {[%emt 0:00:09]} 24. Rxa8+ {[%emt 0:03:32]} Bxa8 {[%emt 0:00:07]} 25. Nd6 {[%emt 0:00:05]} Qa5 {[%emt 0:11:57]} 26. Ne8 {[%emt 0:11:17]} Qxc3+ {[%emt 0:00:41]} 27. Ke2 {[%emt 0:00:01]} Qb2+ {[%emt 0:03:58]} 28. Nd2 {[%emt 0:04:47]} Nc3+ {[%emt 0:02:33]} 29. Ke3 {[%emt 0:00:39]} Nd5+ {[%emt 0:00:49]} 1/2-1/2

[Event "7. Arber-Senioren-Cup 2019"]
[Site "Bodenmais"]
[Date "2019.07.27"]
[Round "1.24"]
[White "Auterhoff, Juergen"]
[Black "Schwalb, Manfred"]
[Result "1/2-1/2"]
[ECO "C50"]
[WhiteElo "1673"]
[BlackElo "1965"]
[Annotator "NA RC"]
[PlyCount "84"]
[EventDate "2019.07.27"]
[EventType "swiss"]
[EventCountry "GER"]
[SourceTitle "playchess.com"]
[Source "ChessBase"]
[SourceQuality "1"]
[TimeControl "5400+30"]

1. e4 {[%emt 0:00:00]} e5 {[%emt 0:00:00]} 2. Bc4 {[%emt 0:00:00]} Nc6 {[%emt 0:00:00]} 3. Nf3 {[%emt 0:00:00]} g6 {[%emt 0:00:00]} 4. d3 {[%emt 0:00:00]} Bg7 {[%emt 0:00:00]} 5. a3 {[%emt 0:00:00]} Nf6 {[%emt 0:00:00]} 6. Nc3 {[%emt 0:00:00]} d6 {[%emt 0:00:00]} 7. h3 {[%emt 0:00:00]} O-O {[%emt 0:00:00]} 8. O-O {[%emt 0:00:00]} Nh5 {[%emt 0:00:00]} 9. Bg5 {[%emt 0:00:00]} Qd7 {[%emt 0:00:00]} 10. Nd5 {[%emt 0:00:00]} h6 {[%emt 0:00:00]} 11. Be3 {[%emt 0:00:00]} Ne7 {[%emt 0:00:00]} 12. Nh4 {[%emt 0:00:00]} Nxd5 13. Bxd5 Kh7 {[%emt 0:00:00]} 14. Qf3 {[%emt 0:00:10]} c6 {[%emt 0:00:00]} 15. Bb3 {[%emt 0:10:14]} Qe7 {[%emt 0:01:31]} 16. Nf5 {[%emt 0:02:02]} gxf5 {[%emt 0:09:44]} 17. Qxh5 {[%emt 0:00:15]} f4 {[%emt 0:00:44]} 18. Bd2 {[%emt 0:01:52]} Be6 {[%emt 0:07:56]} 19. Bxe6 {[%emt 0:01:27]} fxe6 {[%emt 0:00:36]} 20. Bc3 {[%emt 0:07:30]} c5 {[%emt 0:09:39]} 21. Rae1 {[%emt 0:04:30]} Bf6 {[%emt 0:00:18]} 22. Kh2 {[%emt 0:03:23]} Rg8 {[%emt 0:00:24]} 23. Rg1 {[%emt 0:04:28]} Rg5 {[%emt 0:01:51]} 24. Qf3 {[%emt 0:00:33]} Rag8 {[%emt 0:00:41]} 25. g3 {[%emt 0:02:21]} Qg7 {[%emt 0:01:40]} 26. Rg2 {[%emt 0:03:34]} fxg3+ {[%emt 0:01:15]} 27. Rxg3 {[%emt 0:06:10]} Rxg3 {[%emt 0:00:18]} 28. Qxg3 {[%emt 0:02:02]} Bg5 {[%emt 0:01:09]} 29. Kh1 {[%emt 0:02:28]} Qf6 {[%emt 0:02:42]} 30. Rg1 {[%emt 0:01:35]} Rf8 {[%emt 0:00:17]} 31. Be1 {[%emt 0:05:41]} b5 {[%emt 0:08:37]} 32. b3 {[%emt 0:02:28]} d5 {[%emt 0:07:04]} 33. Rg2 {[%emt 0:04:54]} Bc1 {[%emt 0:06:56]} 34. a4 {[%emt 0:00:33]} a6 {[%emt 0:01:17]} 35. Bc3 {[%emt 0:01:23]} Bf4 {[%emt 0:00:35]} 36. Qg4 {[%emt 0:01:04]} Qf7 {[%emt 0:07:48]} 37. axb5 {[%emt 0:01:43]} axb5 {[%emt 0:00:02]} 38. f3 {[%emt 0:02:39]} d4 {[%emt 0:00:53]} 39. Be1 {[%emt 0:01:20]} Bg5 {[%emt 0:00:34]} 40. h4 {[%emt 0:02:01]} Bf4 {[%emt 0:00:56]} 41. h5 {[%emt 0:01:30]} Bg5 {[%emt 0:04:44]} 42. Rg3 {[%emt 0:02:32]} b4 {[%emt 0:02:33]} 1/2-1/2

[Event "7. Arber-Senioren-Cup 2019"]
[Site "Bodenmais"]
[Date "2019.07.27"]
[Round "1.25"]
[White "Fleuch, Hans-Juergen"]
[Black "Gross-Winter, Guenter"]
[Result "1-0"]
[ECO "B06"]
[WhiteElo "1951"]
[BlackElo "1664"]
[Annotator "NA RC"]
[PlyCount "45"]
[EventDate "2019.07.27"]
[EventType "swiss"]
[EventCountry "GER"]
[SourceTitle "playchess.com"]
[Source "ChessBase"]
[SourceQuality "1"]
[TimeControl "5400+30"]

1. e4 g6 {[%emt 0:00:00]} 2. d4 {[%emt 0:00:00]} Bg7 {[%emt 0:00:00]} 3. Nc3 {[%emt 0:00:00]} d6 {[%emt 0:00:00]} 4. Nf3 {[%emt 0:00:00]} Bg4 {[%emt 0:00:00]} 5. Be2 {[%emt 0:00:00]} e6 {[%emt 0:00:00]} 6. h3 {[%emt 0:00:00]} Bxf3 {[%emt 0:00:00]} 7. Bxf3 {[%emt 0:00:00]} Ne7 {[%emt 0:00:00]} 8. Be3 {[%emt 0:00:00]} c6 {[%emt 0:00:00]} 9. Qd2 {[%emt 0:00:00]} h5 {[%emt 0:00:00]} 10. h4 {[%emt 0:00:00]} Nd7 {[%emt 0:00:00]} 11. Be2 {[%emt 0:00:00]} b5 {[%emt 0:00:00]} 12. a3 {[%emt 0:00:00]} Nb6 {[%emt 0:00:00]} 13. b3 {[%emt 0:00:00]} d5 {[%emt 0:00:00]} 14. f3 {[%emt 0:00:00]} Nd7 {[%emt 0:00:00]} 15. Rd1 {[%emt 0:06:46]} Qa5 {[%emt 0:07:17]} 16. O-O {[%emt 0:04:43]} O-O-O {[%emt 0:11:13]} 17. Nxd5 {[%emt 0:05:47]} Qxa3 {[%emt 0:10:20]} 18. Ra1 {[%emt 0:02:22]} Qd6 {[%emt 0:00:55]} 19. Nxe7+ {[%emt 0:06:14]} Qxe7 {[%emt 0:00:21]} 20. Rxa7 {[%emt 0:00:20]} Qd6 {[%emt 0:03:48]} 21. c3 {[%emt 0:10:32]} Nc5 {[%emt 0:08:44]} 22. Rd1 {[%emt 0:08:07]} Qb8 {[%emt 0:12:59]} 23. Qa2 {[%emt 0:01:52]} 1-0

[Event "7. Arber-Senioren-Cup 2019"]
[Site "Bodenmais"]
[Date "2019.07.27"]
[Round "1.26"]
[White "Kurze, Volker"]
[Black "Halli, Gerhard"]
[Result "0-1"]
[ECO "B01"]
[WhiteElo "1658"]
[BlackElo "1955"]
[Annotator "NA RC"]
[PlyCount "87"]
[EventDate "2019.07.27"]
[EventType "swiss"]
[EventCountry "GER"]
[SourceTitle "playchess.com"]
[Source "ChessBase"]
[SourceQuality "1"]
[TimeControl "5400+30"]

1. e4 {[%emt 0:00:00]} d5 {[%emt 0:00:00]} 2. exd5 {[%emt 0:00:00]} Qxd5 {[%emt 0:00:00]} 3. Nc3 {[%emt 0:00:00]} Qa5 {[%emt 0:00:00]} 4. d4 {[%emt 0:00:00]} c6 {[%emt 0:00:00]} 5. Bc4 {[%emt 0:00:00]} Nf6 {[%emt 0:00:00]} 6. Nf3 {[%emt 0:00:00]} Bf5 {[%emt 0:00:00]} 7. Ne5 {[%emt 0:00:00]} e6 {[%emt 0:00:00]} 8. g4 {[%emt 0:00:00]} Be4 {[%emt 0:00:00]} 9. O-O {[%emt 0:00:00]} Bd5 {[%emt 0:00:00]} 10. Bd3 {[%emt 0:00:00]} Nbd7 {[%emt 0:00:00]} 11. f4 {[%emt 0:00:00]} Bb4 {[%emt 0:00:00]} 12. Nxd7 {[%emt 0:02:02]} Nxd7 {[%emt 0:00:00]} 13. Nxd5 Qxd5 {[%emt 0:00:00]} 14. c3 {[%emt 0:02:59]} Be7 {[%emt 0:00:00]} 15. Qf3 {[%emt 0:05:47]} Qxf3 {[%emt 0:00:00]} 16. Rxf3 {[%emt 0:00:11]} O-O-O {[%emt 0:03:36]} 17. b4 {[%emt 0:05:47]} h5 {[%emt 0:05:37]} 18. g5 {[%emt 0:00:58]} g6 {[%emt 0:00:09]} 19. h4 {[%emt 0:01:02]} Nb6 {[%emt 0:03:11]} 20. a4 {[%emt 0:03:49]} Rhe8 {[%emt 0:00:21]} 21. Bd2 {[%emt 0:09:22]} Bf8 {[%emt 0:02:20]} 22. a5 {[%emt 0:08:50]} Nd5 {[%emt 0:00:59]} 23. Be4 {[%emt 0:06:11]} Ne7 {[%emt 0:00:50]} 24. Re1 {[%emt 0:04:03]} Nf5 {[%emt 0:04:27]} 25. Bxf5 {[%emt 0:01:25]} exf5 {[%emt 0:00:03]} 26. Rfe3 {[%emt 0:00:25]} Rxe3 {[%emt 0:00:32]} 27. Rxe3 {[%emt 0:00:14]} Bd6 {[%emt 0:00:12]} 28. Re1 {[%emt 0:02:20]} c5 {[%emt 0:04:29]} 29. bxc5 {[%emt 0:07:04]} Bxc5 {[%emt 0:00:09]} 30. Be3 {[%emt 0:01:23]} Ba3 {[%emt 0:01:08]} 31. Bd2 {[%emt 0:03:35]} Rd5 {[%emt 0:01:49]} 32. Re5 {[%emt 0:03:01]} Rd8 {[%emt 0:00:09]} 33. Kf2 {[%emt 0:01:06]} Bd6 {[%emt 0:00:08]} 34. Re1 {[%emt 0:01:11]} Kd7 {[%emt 0:00:29]} 35. d5 {[%emt 0:03:18]} b5 {[%emt 0:02:50]} 36. Be3 {[%emt 0:04:27]} a6 {[%emt 0:00:21]} 37. Kf3 {[%emt 0:03:04]} Rc8 {[%emt 0:00:11]} 38. Bd4 {[%emt 0:02:23]} Rc4 {[%emt 0:00:25]} 39. Be5 {[%emt 0:05:59]} Bxe5 {[%emt 0:05:15]} 40. fxe5 {[%emt 0:02:24]} Rxh4 {[%emt 0:00:06]} 41. Rc1 {[%emt 0:01:47]} Re4 {[%emt 0:00:27]} 42. c4 {[%emt 0:01:09]} Rxc4 {[%emt 0:00:14]} 43. Rxc4 {[%emt 0:00:09]} bxc4 {[%emt 0:00:05]} 44. Ke3 0-1

[Event "7. Arber-Senioren-Cup 2019"]
[Site "Bodenmais"]
[Date "2019.07.27"]
[Round "1.27"]
[White "Schmidt, Matthias"]
[Black "Redeker, Frank"]
[Result "1-0"]
[ECO "E09"]
[WhiteElo "2020"]
[BlackElo "1677"]
[Annotator "NA RC"]
[PlyCount "67"]
[EventDate "2019.07.27"]
[EventType "swiss"]
[EventCountry "GER"]
[SourceTitle "playchess.com"]
[Source "ChessBase"]
[SourceQuality "1"]
[TimeControl "5400+30"]

1. d4 {[%emt 0:00:00]} d5 {[%emt 0:00:00]} 2. Nf3 {[%emt 0:00:00]} Nf6 {[%emt 0:00:00]} 3. g3 {[%emt 0:00:00]} e6 {[%emt 0:00:00]} 4. Bg2 {[%emt 0:00:00]} Be7 {[%emt 0:00:00]} 5. O-O {[%emt 0:00:00]} O-O {[%emt 0:00:00]} 6. c4 {[%emt 0:00:00]} c6 {[%emt 0:00:00]} 7. Qc2 {[%emt 0:00:00]} Nbd7 {[%emt 0:00:00]} 8. Nbd2 {[%emt 0:00:00]} b5 {[%emt 0:00:00]} 9. c5 {[%emt 0:00:00]} Qc7 {[%emt 0:00:00]} 10. b4 {[%emt 0:00:00]} a5 {[%emt 0:00:00]} 11. bxa5 {[%emt 0:00:00]} Rxa5 {[%emt 0:00:00]} 12. Nb3 {[%emt 0:00:00]} Ra4 {[%emt 0:00:00]} 13. Bf4 {[%emt 0:00:00]} Qd8 {[%emt 0:00:00]} 14. Ne5 {[%emt 0:00:00]} Bb7 {[%emt 0:00:00]} 15. Rfc1 {[%emt 0:00:00]} Nh5 {[%emt 0:00:00]} 16. Bf3 {[%emt 0:00:35]} Nxf4 {[%emt 0:00:00]} 17. gxf4 {[%emt 0:00:04]} f5 {[%emt 0:03:05]} 18. Kh1 {[%emt 0:04:35]} Rf6 {[%emt 0:00:16]} 19. Rg1 {[%emt 0:00:42]} Rh6 {[%emt 0:04:18]} 20. Rg2 {[%emt 0:01:01]} Bf8 {[%emt 0:02:52]} 21. e3 {[%emt 0:04:25]} Nxe5 {[%emt 0:03:58]} 22. fxe5 {[%emt 0:01:01]} Qh4 {[%emt 0:00:34]} 23. Nd2 {[%emt 0:04:30]} Kh8 {[%emt 0:13:16]} 24. Be2 {[%emt 0:04:09]} Ra8 {[%emt 0:04:08]} 25. Nf3 Qe7 {[%emt 0:04:09]} 26. Ng5 {[%emt 0:07:06]} Rg6 {[%emt 0:06:26]} 27. Rag1 {[%emt 0:00:45]} h6 {[%emt 0:00:14]} 28. Nf7+ {[%emt 0:00:23]} Qxf7 {[%emt 0:01:05]} 29. Rxg6 {[%emt 0:00:09]} Be7 {[%emt 0:03:49]} 30. Bh5 {[%emt 0:02:08]} Rg8 {[%emt 0:00:25]} 31. Rxh6+ {[%emt 0:00:31]} gxh6 {[%emt 0:00:53]} 32. Bxf7 {[%emt 0:00:11]} Rxg1+ {[%emt 0:00:10]} 33. Kxg1 {[%emt 0:00:12]} Bc8 {[%emt 0:00:23]} 34. a4 {[%emt 0:00:22]} 1-0

[Event "7. Arber-Senioren-Cup 2019"]
[Site "Bodenmais"]
[Date "2019.07.28"]
[Round "2.7"]
[White "Herbold, Manfred"]
[Black "Mahnke, Ralf"]
[Result "1-0"]
[ECO "C23"]
[WhiteElo "2081"]
[BlackElo "1925"]
[Annotator "NA RC"]
[PlyCount "67"]
[EventDate "2019.07.27"]
[EventType "swiss"]
[EventCountry "GER"]
[SourceTitle "playchess.com"]
[Source "ChessBase"]
[SourceQuality "1"]
[TimeControl "5400+30"]

1. e4 {[%emt 0:00:00]} e5 {[%emt 0:00:00]} 2. Bc4 {[%emt 0:00:00]} Nc6 {[%emt 0:00:00]} 3. f4 {[%emt 0:00:00]} Nf6 {[%emt 0:00:00]} 4. Nc3 {[%emt 0:00:00]} Bc5 {[%emt 0:00:00]} 5. Nf3 {[%emt 0:00:00]} d6 {[%emt 0:00:00]} 6. Na4 {[%emt 0:00:00]} Bb6 {[%emt 0:00:00]} 7. Nxb6 {[%emt 0:00:00]} axb6 {[%emt 0:00:00]} 8. d3 {[%emt 0:00:00]} O-O {[%emt 0:00:00]} 9. fxe5 {[%emt 0:00:00]} Nxe5 {[%emt 0:00:00]} 10. Nxe5 {[%emt 0:00:00]} dxe5 {[%emt 0:00:00]} 11. Bg5 {[%emt 0:00:00]} Qd6 {[%emt 0:00:00]} 12. O-O {[%emt 0:00:00]} Ng4 {[%emt 0:00:00]} 13. Qd2 {[%emt 0:00:00]} h6 {[%emt 0:00:00]} 14. Be3 {[%emt 0:00:00]} Nxe3 {[%emt 0:00:00]} 15. Qxe3 {[%emt 0:00:00]} Be6 {[%emt 0:00:00]} 16. Bxe6 {[%emt 0:00:00]} Qxe6 {[%emt 0:00:00]} 17. a3 {[%emt 0:00:00]} Qd6 {[%emt 0:00:00]} 18. Rf5 {[%emt 0:00:38]} f6 {[%emt 0:00:00]} 19. Raf1 {[%emt 0:01:23]} Qc5 {[%emt 0:00:00]} 20. Qf2 {[%emt 0:09:48]} Qxf2+ {[%emt 0:00:00]} 21. Kxf2 {[%emt 0:00:39]} Rfd8 {[%emt 0:00:00]} 22. Ke3 {[%emt 0:00:15]} c5 {[%emt 0:00:00]} 23. g4 {[%emt 0:01:01]} Rd7 {[%emt 0:00:00]} 24. h4 {[%emt 0:02:32]} Re8 {[%emt 0:00:00]} 25. g5 {[%emt 0:02:37]} hxg5 {[%emt 0:00:00]} 26. hxg5 {[%emt 0:00:06]} fxg5 {[%emt 0:00:00]} 27. Rxg5 {[%emt 0:01:24]} Rf7 {[%emt 0:00:00]} 28. Rff5 {[%emt 0:05:38]} Rxf5 {[%emt 0:00:00]} 29. exf5 {[%emt 0:00:14]} b5 {[%emt 0:02:05]} 30. f6 {[%emt 0:00:55]} Kf7 {[%emt 0:02:57]} 31. fxg7 {[%emt 0:01:29]} c4 {[%emt 0:00:37]} 32. Ke4 {[%emt 0:01:14]} cxd3 {[%emt 0:00:29]} 33. cxd3 {[%emt 0:00:06]} Kg8 {[%emt 0:00:36]} 34. Rxe5 {[%emt 0:00:22]} 1-0

[Event "7. Arber-Senioren-Cup 2019"]
[Site "Bodenmais"]
[Date "2019.07.28"]
[Round "2.8"]
[White "Waltenberger, Udo"]
[Black "Kuempers, Ulrich"]
[Result "0-1"]
[ECO "E63"]
[WhiteElo "1986"]
[BlackElo "2030"]
[Annotator "NA RC"]
[PlyCount "162"]
[EventDate "2019.07.27"]
[EventType "swiss"]
[EventCountry "GER"]
[SourceTitle "playchess.com"]
[Source "ChessBase"]
[SourceQuality "1"]
[TimeControl "5400+30"]

1. d4 {[%emt 0:00:00]} Nf6 {[%emt 0:00:00]} 2. Nf3 {[%emt 0:00:00]} g6 {[%emt 0:00:00]} 3. g3 {[%emt 0:00:00]} Bg7 {[%emt 0:00:00]} 4. Bg2 {[%emt 0:00:00]} O-O {[%emt 0:00:00]} 5. O-O {[%emt 0:00:00]} d6 {[%emt 0:00:00]} 6. c4 {[%emt 0:00:00]} a6 {[%emt 0:00:00]} 7. Nc3 {[%emt 0:00:00]} Nc6 {[%emt 0:00:00]} 8. h3 {[%emt 0:00:00]} Rb8 {[%emt 0:00:00]} 9. Be3 {[%emt 0:00:00]} b5 {[%emt 0:00:00]} 10. Nd2 {[%emt 0:00:00]} Bd7 {[%emt 0:00:00]} 11. Rc1 {[%emt 0:00:00]} e5 {[%emt 0:00:00]} 12. dxe5 {[%emt 0:00:00]} dxe5 {[%emt 0:00:00]} 13. cxb5 {[%emt 0:00:00]} axb5 {[%emt 0:00:00]} 14. Nde4 {[%emt 0:00:00]} Nxe4 {[%emt 0:07:47]} 15. Nxe4 {[%emt 0:00:00]} Nd4 {[%emt 0:04:50]} 16. Nc5 {[%emt 0:00:00]} b4 {[%emt 0:09:46]} 17. Bxd4 {[%emt 0:14:28]} exd4 {[%emt 0:00:16]} 18. Nxd7 {[%emt 0:01:24]} Qxd7 {[%emt 0:00:31]} 19. Qc2 {[%emt 0:02:59]} Qe6 {[%emt 0:07:49]} 20. Qc4 {[%emt 0:05:01]} Qxc4 {[%emt 0:28:24]} 21. Rxc4 {[%emt 0:00:02]} Rfe8 {[%emt 0:00:45]} 22. Bf3 {[%emt 0:02:24]} b3 {[%emt 0:13:21]} 23. axb3 {[%emt 0:02:24]} Rxb3 {[%emt 0:01:49]} 24. Rxc7 {[%emt 0:01:22]} Rxb2 {[%emt 0:00:20]} 25. Rd1 {[%emt 0:07:16]} h5 {[%emt 0:04:11]} 26. Kg2 {[%emt 0:10:39]} Rd8 {[%emt 0:01:14]} 27. Rd3 {[%emt 0:03:44]} Bf6 {[%emt 0:05:03]} 28. Rb7 {[%emt 0:07:56]} Rc2 {[%emt 0:01:59]} 29. Rb1 {[%emt 0:05:27]} Kg7 {[%emt 0:00:56]} 30. Rbd1 {[%emt 0:00:33]} Rb8 {[%emt 0:01:05]} 31. R1d2 {[%emt 0:01:03]} Rc3 {[%emt 0:01:44]} 32. Bd5 {[%emt 0:07:52]} g5 {[%emt 0:04:18]} 33. e3 {[%emt 0:05:33]} dxe3 {[%emt 0:00:55]} 34. Rxe3 {[%emt 0:02:34]} Rxe3 {[%emt 0:00:51]} 35. fxe3 {[%emt 0:00:01]} Rd8 {[%emt 0:01:39]} 36. e4 {[%emt 0:02:24]} Be5 {[%emt 0:01:11]} 37. Ra2 {[%emt 0:01:30]} Rd7 {[%emt 0:00:18]} 38. g4 {[%emt 0:01:47]} h4 {[%emt 0:00:12]} 39. Rc2 {[%emt 0:03:03]} Ra7 {[%emt 0:00:14]} 40. Ra2 {[%emt 0:01:52]} Rc7 {[%emt 0:00:01]} 41. Ra3 {[%emt 0:01:16]} Rc2+ {[%emt 0:00:24]} 42. Kf1 {[%emt 0:01:27]} f6 {[%emt 0:00:08]} 43. Ra7+ {[%emt 0:01:02]} Kf8 {[%emt 0:00:01]} 44. Ra8+ {[%emt 0:03:22]} Ke7 {[%emt 0:00:02]} 45. Ra7+ {[%emt 0:00:10]} Kd6 {[%emt 0:01:37]} 46. Ra6+ {[%emt 0:00:05]} Kc7 {[%emt 0:00:09]} 47. Ra3 {[%emt 0:01:55]} Kb6 {[%emt 0:00:58]} 48. Rf3 {[%emt 0:01:58]} Kc5 {[%emt 0:00:16]} 49. Rf2 {[%emt 0:01:16]} Rc1+ {[%emt 0:00:14]} 50. Kg2 {[%emt 0:00:02]} Kd4 {[%emt 0:00:17]} 51. Rf3 {[%emt 0:01:03]} Bf4 {[%emt 0:01:44]} 52. Bb7 {[%emt 0:01:13]} Rb1 {[%emt 0:01:13]} 53. Bd5 {[%emt 0:00:06]} Rb6 {[%emt 0:00:21]} 54. Rb3 {[%emt 0:00:58]} Ra6 {[%emt 0:01:02]} 55. Rb1 {[%emt 0:02:37]} Ra3 {[%emt 0:00:32]} 56. Rb3 {[%emt 0:00:01]} Ra2+ {[%emt 0:00:22]} 57. Kf1 {[%emt 0:00:13]} Rh2 {[%emt 0:00:35]} 58. Rf3 {[%emt 0:00:17]} Bg3 {[%emt 0:02:53]} 59. Rxf6 {[%emt 0:01:17]} Rxh3 {[%emt 0:01:19]} 60. Rf3 {[%emt 0:00:11]} Rh1+ {[%emt 0:01:12]} 61. Kg2 {[%emt 0:00:21]} Rh2+ {[%emt 0:00:03]} 62. Kg1 {[%emt 0:01:02]} Rb2 {[%emt 0:00:06]} 63. Kf1 {[%emt 0:00:46]} Bf4 {[%emt 0:00:34]} 64. Rf2 {[%emt 0:00:21]} Rb1+ {[%emt 0:00:13]} 65. Kg2 {[%emt 0:00:02]} Be3 {[%emt 0:00:25]} 66. Rf1 {[%emt 0:00:58]} Rb2+ {[%emt 0:00:07]} 67. Kh1 {[%emt 0:00:44]} h3 {[%emt 0:00:44]} 68. Rf3 {[%emt 0:02:43]} h2 {[%emt 0:00:16]} 69. Rf1 {[%emt 0:00:07]} Bf4 {[%emt 0:00:52]} 70. Bc6 {[%emt 0:00:42]} Be5 {[%emt 0:01:38]} 71. Bd5 {[%emt 0:00:07]} Ke3 {[%emt 0:00:22]} 72. Bc6 {[%emt 0:01:16]} Ke2 {[%emt 0:00:20]} 73. Rc1 {[%emt 0:01:23]} Kf3 {[%emt 0:02:21]} 74. Bd7 {[%emt 0:00:01]} Kg3 {[%emt 0:00:49]} 75. Rd1 {[%emt 0:01:07]} Kh3 {[%emt 0:01:17]} 76. Be6 {[%emt 0:00:37]} Rg2 {[%emt 0:00:12]} 77. Rd3+ {[%emt 0:00:28]} Bg3 {[%emt 0:00:07]} 78. Rd1 {[%emt 0:00:16]} Re2 {[%emt 0:00:18]} 79. Bf5 {[%emt 0:00:21]} Bf4 {[%emt 0:00:37]} 80. Rd3+ {[%emt 0:01:16]} Be3 {[%emt 0:00:02]} 81. Rd1 {[%emt 0:00:00]} Rg2 0-1

[Event "7. Arber-Senioren-Cup 2019"]
[Site "Bodenmais"]
[Date "2019.07.28"]
[Round "2.9"]
[White "Hilbig, Dieter"]
[Black "Augustin, Christian"]
[Result "1-0"]
[ECO "C00"]
[WhiteElo "1943"]
[BlackElo "1971"]
[Annotator "NA RC"]
[PlyCount "93"]
[EventDate "2019.07.27"]
[EventType "swiss"]
[EventCountry "GER"]
[SourceTitle "playchess.com"]
[Source "ChessBase"]
[SourceQuality "1"]
[TimeControl "5400+30"]

1. e4 {[%emt 0:00:00]} e6 {[%emt 0:00:00]} 2. d4 {[%emt 0:00:00]} b6 {[%emt 0:00:00]} 3. Bf4 {[%emt 0:00:00]} Bb7 {[%emt 0:00:00]} 4. Nd2 {[%emt 0:00:00]} Ne7 {[%emt 0:00:00]} 5. Bd3 {[%emt 0:00:00]} d6 {[%emt 0:00:00]} 6. Ngf3 {[%emt 0:00:00]} g6 {[%emt 0:00:00]} 7. c3 {[%emt 0:00:00]} Bg7 {[%emt 0:00:00]} 8. Qc2 {[%emt 0:00:00]} a6 {[%emt 0:00:00]} 9. h4 {[%emt 0:00:00]} h6 {[%emt 0:00:00]} 10. O-O-O {[%emt 0:00:00]} Nd7 {[%emt 0:00:00]} 11. Nc4 {[%emt 0:00:00]} b5 {[%emt 0:00:00]} 12. Na5 {[%emt 0:00:00]} Ra7 {[%emt 0:00:00]} 13. Nxb7 {[%emt 0:00:00]} Rxb7 {[%emt 0:00:00]} 14. Rhe1 {[%emt 0:00:00]} a5 {[%emt 0:00:00]} 15. Qe2 {[%emt 0:00:00]} Qb8 {[%emt 0:00:00]} 16. g4 {[%emt 0:00:00]} h5 {[%emt 0:00:00]} 17. gxh5 {[%emt 0:00:00]} Rxh5 {[%emt 0:00:00]} 18. Kb1 {[%emt 0:06:51]} e5 {[%emt 0:01:34]} 19. Bg3 {[%emt 0:09:06]} b4 {[%emt 0:06:05]} 20. cxb4 {[%emt 0:01:07]} Rxb4 {[%emt 0:00:44]} 21. d5 {[%emt 0:06:50]} Nc5 {[%emt 0:01:56]} 22. Bc4 {[%emt 0:07:37]} Na4 {[%emt 0:06:21]} 23. Bb3 {[%emt 0:01:22]} Nc5 {[%emt 0:03:59]} 24. Bc4 {[%emt 0:01:53]} Bh6 {[%emt 0:05:19]} 25. Ka1 {[%emt 0:03:15]} Nc8 {[%emt 0:02:35]} 26. Rb1 {[%emt 0:06:05]} Nb6 {[%emt 0:20:11]} 27. b3 {[%emt 0:08:31]} a4 {[%emt 0:00:42]} 28. bxa4 {[%emt 0:04:16]} Rxb1+ {[%emt 0:12:49]} 29. Rxb1 {[%emt 0:00:12]} Qa7 {[%emt 0:00:12]} 30. Bb5+ {[%emt 0:03:06]} Ke7 {[%emt 0:00:38]} 31. Qc2 {[%emt 0:03:50]} f6 {[%emt 0:03:16]} 32. Ne1 {[%emt 0:02:58]} g5 {[%emt 0:02:10]} 33. Be2 {[%emt 0:00:27]} Rxh4 {[%emt 0:02:46]} 34. Bxh4 {[%emt 0:00:10]} gxh4 {[%emt 0:00:11]} 35. Bb5 {[%emt 0:02:28]} Qa5 {[%emt 0:04:04]} 36. Nd3 {[%emt 0:02:53]} Bd2 {[%emt 0:00:16]} 37. a3 {[%emt 0:03:16]} Qc3+ {[%emt 0:05:33]} 38. Qxc3 {[%emt 0:00:34]} Bxc3+ {[%emt 0:01:14]} 39. Ka2 {[%emt 0:00:31]} Nxe4 {[%emt 0:00:40]} 40. Rc1 {[%emt 0:08:15]} Nxd5 {[%emt 0:06:09]} 41. Bc6 {[%emt 0:01:29]} Bd2 {[%emt 0:02:23]} 42. Rc2 {[%emt 0:02:24]} Nec3+ {[%emt 0:01:09]} 43. Kb3 {[%emt 0:01:20]} e4 {[%emt 0:01:49]} 44. Rxd2 {[%emt 0:01:55]} h3 {[%emt 0:00:55]} 45. Bxd5 {[%emt 0:02:45]} Nxd5 {[%emt 0:00:35]} 46. Nb4 {[%emt 0:01:02]} Nf4 {[%emt 0:00:39]} 47. Nd5+ {[%emt 0:00:38]} 1-0